lending/lending_fUSD_20250808
["ID","MTS","AMOUNT","RATE_DAILY","PERIOD"]
[377929967,1754614248602,-649.34,0.00020547,2]
[377929969,1754614248611,-1112.97,0.00020547,2]
[377929971,1754614248621,-1702.91,0.00020547,2]
[377929973,1754614248631,-400.0,0.00020547,2]
[377929975,1754614248641,-563.63,0.00020547,2]
[377929977,1754614248650,-535.07,0.00020547,2]
[377929979,1754614248661,-400.0,0.00020547,2]
[377929981,1754614248670,-412.44,0.00020547,2]
[377929983,1754614248679,-1496.19,0.00020547,2]
[377929985,1754614248689,-798.53,0.00020547,2]
[377929987,1754614248699,-636.33,0.00020547,2]
[377929989,1754614248709,-400.0,0.00020547,2]
[377929991,1754614248719,-400.0,0.00020547,2]
[377929993,1754614248728,-368.40363882,0.00020547,2]
[377929995,1754614248738,-400.0,0.00020547,2]
[377929997,1754614248748,-400.0,0.00020547,2]
[377929999,1754614248759,-501.71,0.00020547,2]
[377930001,1754614248769,-1301.51,0.00020547,2]
[377930003,1754614248779,-400.0,0.00020547,2]
[377930005,1754614248789,-400.0,0.00020547,2]
[377930007,1754614248799,-400.0,0.00020547,2]
[377930009,1754614248809,-1160.41,0.00020547,2]
[377930011,1754614248819,-502.75,0.00020547,2]
[377930013,1754614248828,-400.0,0.00020547,2]
[377930015,1754614248838,-460.73941887,0.00020547,2]
[377930017,1754614248847,-400.0,0.00020547,2]
[377930019,1754614248857,-648.77,0.00020547,2]
[377930021,1754614248867,-400.0,0.00020547,2]
[377930023,1754614248876,-400.0,0.00020547,2]
[377930025,1754614248886,-1559.58,0.00020547,2]
[377930027,1754614248896,-1110.84,0.00020547,2]
[377930029,1754614248907,-1082.24,0.00020547,2]
[377930031,1754614248917,-672.61,0.00020547,2]
[377930033,1754614248927,-738.48,0.00020547,2]
[377930035,1754614248937,-400.0,0.00020547,2]
[377930037,1754614248947,-2850.84,0.00020547,2]
[377930039,1754614248957,-1783.35,0.00020547,2]
[377930041,1754614248967,-819.83,0.00020547,2]
[377930042,1754614248977,-1144.25,0.00020547,2]
[377930045,1754614248988,-400.0,0.00020547,2]
[377930046,1754614248998,-400.0,0.00020547,2]
[377930048,1754614249010,-400.0,0.00020547,2]
[377930050,1754614249020,-1207.97,0.00020547,2]
[377930053,1754614249031,-774.82,0.00020547,2]
[377930055,1754614249041,-400.0,0.00020547,2]
[377930057,1754614249052,-400.0,0.00020547,2]
[377930058,1754614249061,-400.0,0.00020547,2]
[377930061,1754614249073,-400.0,0.00020547,2]
[377930063,1754614249083,-637.04,0.00020547,2]
[377930065,1754614249093,-400.0,0.00020547,2]
[377930067,1754614249103,-809.38,0.00020547,2]
[377930069,1754614249113,-1872.75,0.00020547,2]
[377930071,1754614249124,-739.13,0.00020547,2]
[377930073,1754614249133,-400.0,0.00020547,2]
[377930074,1754614249143,-518.6,0.00020547,2]
[377930076,1754614249154,-385.89,0.00020547,2]
[377930078,1754614249165,-400.0,0.00020547,2]
[377930080,1754614249175,-221.2,0.00020547,2]
[377930082,1754614249185,-3096.84,0.00020547,2]
[377930084,1754614249195,-165.12,0.00020547,2]
[377930086,1754614249205,-400.0,0.00020547,2]
[377930088,1754614249215,-457.44,0.00020547,2]
[377930090,1754614249225,-400.0,0.00020547,2]
[377930092,1754614249234,-400.0,0.00020547,2]
[377930094,1754614249244,-688.92,0.00020547,2]
[377930096,1754614249255,-400.0,0.00020547,2]
[377930098,1754614249265,-724.63,0.00020547,2]
[377930100,1754614249275,-400.0,0.00020547,2]
[377930102,1754614249285,-400.0,0.00020547,2]
[377930103,1754614249295,-400.0,0.00020547,2]
[377930104,1754614249305,-263.53,0.00020547,2]
[377930105,1754614249315,-400.0,0.00020547,2]
[377930106,1754614249324,-400.0,0.00020547,2]
[377930107,1754614249334,-400.0,0.00020547,2]
[377930108,1754614249344,-2478.01,0.00020547,2]
[377930109,1754614249354,-1838.62,0.00020547,2]
[377930110,1754614249363,-717.49,0.00020547,2]
[377930111,1754614249372,-791.17,0.00020547,2]
[377930112,1754614249382,-453.61,0.00020547,2]
[377930113,1754614249392,-743.0,0.00020547,2]
[377930114,1754614249402,-2279.55,0.00020547,2]
[377930116,1754614249411,-400.0,0.00020547,2]
[377930118,1754614249421,-833.52,0.00020547,2]
[377930120,1754614249430,-1092.65,0.00020547,2]
[377930122,1754614249439,-400.0,0.00020547,2]
[377930124,1754614249448,-633.66,0.00020547,2]
[377930126,1754614249456,-1210.68,0.00020547,2]
[377930128,1754614249467,-400.0,0.00020547,2]
[377930130,1754614249477,-900.29,0.00020547,2]
[377930132,1754614249486,-400.0,0.00020547,2]
[377930134,1754614249496,-757.08,0.00020547,2]
[377930136,1754614249507,-400.0,0.00020547,2]
[377930138,1754614249518,-602.93,0.00020547,2]
[377930140,1754614249531,-1933.78,0.00020547,2]
[377930142,1754614249541,-400.0,0.00020547,2]
[377930144,1754614249551,-400.0,0.00020547,2]
[377930146,1754614249560,-541.11,0.00020547,2]
[377930148,1754614249570,-411.24,0.00020547,2]
[377930150,1754614249581,-400.0,0.00020547,2]
[377930152,1754614249591,-2866.87,0.00020547,2]
[377930154,1754614249600,-400.0,0.00020547,2]
[377930156,1754614249609,-400.0,0.00020547,2]
[377930158,1754614249618,-1218.55,0.00020547,2]
[377930160,1754614249628,-400.0,0.00020547,2]
[377930162,1754614249637,-419.754901,0.00020547,2]
[377930164,1754614249646,-400.0,0.00020547,2]
[377930166,1754614249656,-1023.23,0.00020547,2]
[377930168,1754614249666,-400.0,0.00020547,2]
[377930170,1754614249675,-400.0,0.00020547,2]
[377930172,1754614249684,-995.05,0.00020547,2]
[377930174,1754614249694,-400.0,0.00020547,2]
[377930176,1754614249704,-1397.65,0.00020547,2]
[377930178,1754614249713,-400.0,0.00020547,2]
[377930180,1754614249723,-400.0,0.00020547,2]
[377930182,1754614249732,-400.0,0.00020547,2]
[377930184,1754614249742,-400.0,0.00020547,2]
[377930186,1754614249752,-440.38,0.00020547,2]
[377930188,1754614249762,-569.3,0.00020547,2]
[377930190,1754614249772,-1429.25,0.00020547,2]
[377930192,1754614249781,-1014.96,0.00020547,2]
[377930194,1754614249791,-400.0,0.00020547,2]
[377930196,1754614249802,-627.88,0.00020547,2]
[377930198,1754614249811,-346.61,0.00020547,2]
[377930200,1754614249820,-400.0,0.00020547,2]
[377930202,1754614249830,-315.24,0.00020547,2]
[377930204,1754614249840,-1063.03,0.00020547,2]
[377930206,1754614249849,-536.63,0.00020547,2]
[377930208,1754614249860,-400.0,0.00020547,2]
[377930210,1754614249870,-400.0,0.00020547,2]
[377930212,1754614249879,-400.0,0.00020547,2]
[377930214,1754614249889,-1603.28,0.00020547,2]
[377930216,1754614249899,-400.0,0.00020547,2]
[377930219,1754614249910,-400.0,0.00020547,2]
[377930221,1754614249919,-400.0,0.00020547,2]
[377930223,1754614249929,-1915.69,0.00020547,2]
[377930225,1754614249939,-1163.02,0.00020547,2]
[377930227,1754614249949,-400.0,0.00020547,2]
[377930229,1754614249959,-481.01,0.00020547,2]
[377930231,1754614249968,-183.731567,0.00020547,2]
[377930233,1754614249978,-400.0,0.00020547,2]
[377930235,1754614249987,-281.63,0.00020547,2]
[377930237,1754614249997,-973.9,0.00020547,2]
[377930239,1754614250008,-1809.74,0.00020547,2]
[377930241,1754614250019,-175.652791,0.00020547,2]
[377930243,1754614250029,-899.62,0.00020547,2]
[377930245,1754614250039,-960.68,0.00020547,2]
[377930247,1754614250049,-777.43,0.00020547,2]
[377930249,1754614250059,-400.0,0.00020547,2]
[377930251,1754614250068,-400.0,0.00020547,2]
[377930253,1754614250078,-1000.0,0.00020547,2]
[377930255,1754614250087,-1024.44,0.00020547,2]
[377930257,1754614250097,-173.04,0.00020547,2]
[377930259,1754614250107,-715.39,0.00020547,2]
[377930261,1754614250117,-3151.2,0.00020547,2]
[377930263,1754614250127,-222.08,0.00020547,2]
[377930265,1754614250136,-715.1,0.00020547,2]
[377930267,1754614250147,-400.0,0.00020547,2]
[377930269,1754614250158,-400.0,0.00020547,2]
[377930271,1754614250167,-452.77,0.00020547,2]
[377930273,1754614250177,-400.0,0.00020547,2]
[377930275,1754614250186,-1570.29,0.00020547,2]
[377930277,1754614250198,-565.95,0.00020547,2]
[377930279,1754614250207,-755.68,0.00020547,2]
[377930281,1754614250218,-451.58,0.00020547,2]
[377930283,1754614250227,-449.87,0.00020547,2]
[377930285,1754614250237,-400.0,0.00020547,2]
[377930287,1754614250246,-786.14,0.00020547,2]
[377930289,1754614250258,-400.0,0.00020547,2]
[377930291,1754614250267,-666.42,0.00020547,2]
[377930293,1754614250276,-1433.09,0.00020547,2]
[377930295,1754614250286,-1047.76,0.00020547,2]
[377930297,1754614250295,-400.0,0.00020547,2]
[377930299,1754614250305,-400.0,0.00020547,2]
[377930301,1754614250315,-400.0,0.00020547,2]
[377930303,1754614250325,-150.11,0.00020547,2]
[377930305,1754614250334,-1000.0,0.00020619,2]
[377930307,1754614250344,-2000.0,0.00020816,2]
[377930309,1754614250353,-403.2246368,0.00020821,2]
[377930311,1754614250362,-400.0,0.00020821,2]
[377930313,1754614250372,-400.0,0.00020821,2]
[377930315,1754614250381,-400.0,0.00020821,2]
[377930317,1754614250390,-1357.58,0.00020821,2]
[377930319,1754614250399,-400.0,0.00020821,2]
[377930321,1754614250409,-1208.7,0.00020821,2]
[377930323,1754614250419,-456.63890645,0.00020821,2]
[377930325,1754614250428,-571.32,0.00020821,2]
[377930327,1754614250439,-722.94,0.00020821,2]
[377930329,1754614250448,-400.0,0.00020821,2]
[377930331,1754614250461,-400.0,0.00020821,2]
[377930333,1754614250470,-400.0,0.00020821,2]
[377930335,1754614250479,-440.35,0.00020821,2]
[377930337,1754614250488,-400.0,0.00020821,2]
[377930339,1754614250498,-2803.03,0.00020821,2]
[377930341,1754614250507,-649.34,0.00020821,2]
[377930343,1754614250518,-1112.97,0.00020821,2]
[377930345,1754614250529,-1702.91,0.00020821,2]
[377930347,1754614250539,-400.0,0.00020821,2]
[377930349,1754614250549,-563.63,0.00020821,2]
[377930351,1754614250558,-535.07,0.00020821,2]
[377930353,1754614250568,-400.0,0.00020821,2]
[377930355,1754614250578,-412.44,0.00020821,2]
[377930357,1754614250588,-1496.19,0.00020821,2]
[377930359,1754614250599,-636.33,0.00020821,2]
[377930361,1754614250609,-798.53,0.00020821,2]
[377930363,1754614250620,-400.0,0.00020821,2]
[377930365,1754614250630,-400.0,0.00020821,2]
[377930368,1754614250641,-400.0,0.00020821,2]
[377930370,1754614250651,-400.0,0.00020821,2]
[377930372,1754614250661,-501.71,0.00020821,2]
[377930374,1754614250672,-1301.51,0.00020821,2]
[377930376,1754614250682,-400.0,0.00020821,2]
[377930378,1754614250692,-400.0,0.00020821,2]
[377930380,1754614250703,-400.0,0.00020821,2]
[377930382,1754614250713,-502.75,0.00020821,2]
[377930384,1754614250725,-1160.41,0.00020821,2]
[377930386,1754614250735,-400.0,0.00020821,2]
[377930388,1754614250745,-400.0,0.00020821,2]
[377930390,1754614250756,-648.77,0.00020821,2]
[377930392,1754614250766,-400.0,0.00020821,2]
[377930395,1754614250776,-400.0,0.00020821,2]
[377930397,1754614250786,-1559.58,0.00020821,2]
[377930399,1754614250795,-1110.84,0.00020821,2]
[377930401,1754614250805,-1082.24,0.00020821,2]
[377930403,1754614250815,-672.61,0.00020821,2]
[377930405,1754614250825,-738.48,0.00020821,2]
[377930407,1754614250835,-400.0,0.00020821,2]
[377930409,1754614250846,-2850.84,0.00020821,2]
[377930411,1754614250856,-1783.35,0.00020821,2]
[377930413,1754614250867,-819.83,0.00020821,2]
[377930415,1754614250877,-1144.25,0.00020821,2]
[377930417,1754614250888,-400.0,0.00020821,2]
[377930419,1754614250898,-400.0,0.00020821,2]
[377930421,1754614250908,-400.0,0.00020821,2]
[377930423,1754614250918,-1207.97,0.00020821,2]
[377930425,1754614250929,-774.82,0.00020821,2]
[377930428,1754614250939,-400.0,0.00020821,2]
[377930430,1754614250950,-400.0,0.00020821,2]
[377930432,1754614250960,-400.0,0.00020821,2]
[377930434,1754614250971,-400.0,0.00020821,2]
[377930436,1754614250982,-637.04,0.00020821,2]
[377930438,1754614250992,-400.0,0.00020821,2]
[377930440,1754614251004,-809.38,0.00020821,2]
[377930442,1754614251014,-1872.75,0.00020821,2]
[377930444,1754614251025,-739.13,0.00020821,2]
[377930446,1754614251035,-400.0,0.00020821,2]
[377930449,1754614251046,-518.6,0.00020821,2]
[377930451,1754614251057,-400.0,0.00020821,2]
[377930453,1754614251067,-3096.84,0.00020821,2]
[377930455,1754614251078,-400.0,0.00020821,2]
[377930457,1754614251088,-400.0,0.00020821,2]
[377930459,1754614251099,-400.0,0.00020821,2]
[377930461,1754614251109,-688.92,0.00020821,2]
[377930463,1754614251120,-400.0,0.00020821,2]
[377930466,1754614251130,-724.63,0.00020821,2]
[377930468,1754614251141,-400.0,0.00020821,2]
[377930470,1754614251155,-400.0,0.00020821,2]
[377930472,1754614251165,-206.44595816,0.00020821,2]
[377930474,1754614251178,-400.0,0.00020821,2]
[377930476,1754614251188,-400.0,0.00020821,2]
[377930478,1754614251200,-400.0,0.00020821,2]
[377930480,1754614251211,-2478.01,0.00020821,2]
[377930482,1754614251222,-1838.62,0.00020821,2]
[377930485,1754614251233,-717.49,0.00020821,2]
[377930487,1754614251244,-791.17,0.00020821,2]
[377930489,1754614251254,-453.61,0.00020821,2]
[377930491,1754614251264,-743.0,0.00020821,2]
[377930493,1754614251275,-2279.55,0.00020821,2]
[377930495,1754614251285,-207.68208663,0.00020821,2]
[377930497,1754614251295,-833.52,0.00020821,2]
[377930499,1754614251305,-1092.65,0.00020821,2]
[377930501,1754614251316,-400.0,0.00020821,2]
[377930503,1754614251326,-633.66,0.00020821,2]
[377930505,1754614251337,-1210.68,0.00020821,2]
[377930507,1754614251348,-372.28,0.00020821,2]
[377930509,1754614251358,-900.29,0.00020821,2]
[377930512,1754614251369,-400.0,0.00020821,2]
[377930514,1754614251379,-757.08,0.00020821,2]
[377930516,1754614251390,-400.0,0.00020821,2]
[377930518,1754614251401,-602.93,0.00020821,2]
[377930520,1754614251411,-1933.78,0.00020821,2]
[377930522,1754614251422,-400.0,0.00020821,2]
[377930524,1754614251433,-400.0,0.00020821,2]
[377930527,1754614251443,-541.11,0.00020821,2]
[377930529,1754614251454,-411.24,0.00020821,2]
[377930531,1754614251465,-400.0,0.00020821,2]
[377930533,1754614251475,-2866.87,0.00020821,2]
[377930535,1754614251486,-400.0,0.00020821,2]
[377930537,1754614251496,-400.0,0.00020821,2]
[377930539,1754614251507,-1218.55,0.00020821,2]
[377930541,1754614251517,-400.0,0.00020821,2]
[377930543,1754614251528,-400.0,0.00020821,2]
[377930546,1754614251539,-1023.23,0.00020821,2]
[377930548,1754614251549,-400.0,0.00020821,2]
[377930550,1754614251561,-400.0,0.00020821,2]
[377930552,1754614251571,-995.05,0.00020821,2]
[377930554,1754614251582,-400.0,0.00020821,2]
[377930556,1754614251593,-1397.65,0.00020821,2]
[377930558,1754614251603,-400.0,0.00020821,2]
[377930561,1754614251614,-400.0,0.00020821,2]
[377930563,1754614251625,-400.0,0.00020821,2]
[377930565,1754614251637,-400.0,0.00020821,2]
[377930567,1754614251647,-440.38,0.00020821,2]
[377930569,1754614251658,-569.3,0.00020821,2]
[377930571,1754614251668,-1429.25,0.00020821,2]
[377930573,1754614251679,-1014.96,0.00020821,2]
[377930575,1754614251690,-400.0,0.00020821,2]
[377930577,1754614251701,-627.88,0.00020821,2]
[377930579,1754614251711,-400.0,0.00020821,2]
[377930582,1754614251722,-1063.03,0.00020821,2]
[377930584,1754614251733,-536.63,0.00020821,2]
[377930586,1754614251747,-400.0,0.00020821,2]
[377930588,1754614251760,-400.0,0.00020821,2]
[377930590,1754614251771,-400.0,0.00020821,2]
[377930593,1754614251782,-1603.28,0.00020821,2]
[377930595,1754614251794,-400.0,0.00020821,2]
[377930597,1754614251806,-400.0,0.00020821,2]
[377930599,1754614251817,-400.0,0.00020821,2]
[377930601,1754614251828,-1163.02,0.00020821,2]
[377930604,1754614251839,-1915.69,0.00020821,2]
[377930606,1754614251851,-400.0,0.00020821,2]
[377930608,1754614251861,-481.01,0.00020821,2]
[377930610,1754614251871,-400.0,0.00020821,2]
[377930612,1754614251882,-973.9,0.00020821,2]
[377930614,1754614251892,-1809.74,0.00020821,2]
[377930616,1754614251903,-899.62,0.00020821,2]
[377930618,1754614251914,-960.68,0.00020821,2]
[377930620,1754614251925,-777.43,0.00020821,2]
[377930623,1754614251937,-400.0,0.00020821,2]
[377930625,1754614251948,-400.0,0.00020821,2]
[377930627,1754614251960,-380.40669138,0.00020821,2]
[377930629,1754614251971,-715.39,0.00020821,2]
[377930631,1754614251982,-1024.44,0.00020821,2]
[377930633,1754614251993,-3151.2,0.00020821,2]
[377930635,1754614252006,-715.1,0.00020821,2]
[377930638,1754614252017,-400.0,0.00020821,2]
[377930640,1754614252028,-452.77,0.00020821,2]
[377930642,1754614252038,-326.05174516,0.00020821,2]
[377930644,1754614252049,-1570.29,0.00020821,2]
[377930646,1754614252061,-565.95,0.00020821,2]
[377930648,1754614252072,-755.68,0.00020821,2]
[377930650,1754614252084,-451.58,0.00020821,2]
[377930652,1754614252095,-786.14,0.00020821,2]
[377930655,1754614252106,-229.67543039,0.00020821,2]
[377930657,1754614252117,-400.0,0.00020821,2]
[377930659,1754614252127,-666.42,0.00020821,2]
[377930661,1754614252138,-1433.09,0.00020821,2]
[377930663,1754614252150,-1047.76,0.00020821,2]
[377930665,1754614252161,-400.0,0.00020821,2]
[377930667,1754614252173,-400.0,0.00020821,2]
[377930669,1754614252183,-547.87,0.00020821,2]
[377930671,1754614252195,-7486.42123031,0.00020821,2]
[377930673,1754614252205,-1500.0,0.00020868,2]
[377930676,1754614252216,-1000.0,0.000209,7]
[377930678,1754614252228,-5000.0,0.00020995,2]
[377930680,1754614252239,-500.0,0.00021008,2]
[377930682,1754614252251,-500.0,0.00021043,2]
[377930684,1754614252263,-1013.6980824,0.00021068,2]
[377930687,1754614252275,-336.45940666,0.00021085,2]
[377930689,1754614252285,-400.0,0.00021095,2]
[377930691,1754614252296,-321.38462877,0.00021095,2]
[377930693,1754614252307,-174.51151747,0.00021095,2]
[377930695,1754614252318,-1357.58,0.00021095,2]
[377930697,1754614252329,-491.62785688,0.00021095,2]
[377930700,1754614252340,-1208.7,0.00021095,2]
[377930702,1754614252351,-571.32,0.00021095,2]
[377930704,1754614252361,-722.94,0.00021095,2]
[377930706,1754614252372,-400.0,0.00021095,2]
[377930708,1754614252383,-400.0,0.00021095,2]
[377930711,1754614252394,-400.0,0.00021095,2]
[377930713,1754614252405,-440.35,0.00021095,2]
[377930715,1754614252416,-400.0,0.00021095,2]
[377930717,1754614252427,-2803.03,0.00021095,2]
[377930719,1754614252438,-649.34,0.00021095,2]
[377930721,1754614252448,-1112.97,0.00021095,2]
[377930723,1754614252459,-1702.91,0.00021095,2]
[377930726,1754614252470,-400.0,0.00021095,2]
[377930727,1754614252483,-563.63,0.00021095,2]
[377930728,1754614252493,-535.07,0.00021095,2]
[377930729,1754614252505,-400.0,0.00021095,2]
[377930730,1754614252515,-412.44,0.00021095,2]
[377930731,1754614252526,-1496.19,0.00021095,2]
[377930732,1754614252537,-636.33,0.00021095,2]
[377930733,1754614252548,-798.53,0.00021095,2]
[377930734,1754614252559,-400.0,0.00021095,2]
[377930735,1754614252569,-400.0,0.00021095,2]
[377930736,1754614252581,-254.85780225,0.00021095,2]
[377930738,1754614252593,-501.71,0.00021095,2]
[377930740,1754614252603,-1301.51,0.00021095,2]
[377930742,1754614252613,-400.0,0.00021095,2]
[377930744,1754614252625,-400.0,0.00021095,2]
[377930746,1754614252635,-400.0,0.00021095,2]
[377930748,1754614252646,-400.0,0.00021095,2]
[377930750,1754614252657,-502.75,0.00021095,2]
[377930752,1754614252668,-1160.41,0.00021095,2]
[377930754,1754614252679,-400.0,0.00021095,2]
[377930757,1754614252692,-400.0,0.00021095,2]
[377930759,1754614252703,-648.77,0.00021095,2]
[377930761,1754614252714,-400.0,0.00021095,2]
[377930763,1754614252725,-400.0,0.00021095,2]
[377930765,1754614252736,-1559.58,0.00021095,2]
[377930767,1754614252747,-1110.84,0.00021095,2]
[377930770,1754614252758,-1082.24,0.00021095,2]
[377930772,1754614252768,-672.61,0.00021095,2]
[377930774,1754614252779,-738.48,0.00021095,2]
[377930776,1754614252790,-400.0,0.00021095,2]
[377930778,1754614252800,-2850.84,0.00021095,2]
[377930780,1754614252809,-1783.35,0.00021095,2]
[377930782,1754614252819,-819.83,0.00021095,2]
[377930784,1754614252829,-1144.25,0.00021095,2]
[377930786,1754614252839,-400.0,0.00021095,2]
[377930788,1754614252850,-400.0,0.00021095,2]
[377930790,1754614252861,-524.03,0.00021095,2]
[377930792,1754614252871,-1207.97,0.00021095,2]
[377930794,1754614252882,-774.82,0.00021095,2]
[377930797,1754614252893,-400.0,0.00021095,2]
[377930799,1754614252905,-400.0,0.00021095,2]
[377930801,1754614252917,-400.0,0.00021095,2]
[377930803,1754614252929,-400.0,0.00021095,2]
[377930805,1754614252940,-637.04,0.00021095,2]
[377930807,1754614252950,-400.0,0.00021095,2]
[377930810,1754614252960,-809.38,0.00021095,2]
[377930811,1754614252970,-1872.75,0.00021095,2]
[377930814,1754614252981,-739.13,0.00021095,2]
[377930816,1754614252991,-400.0,0.00021095,2]
[377930818,1754614253002,-518.6,0.00021095,2]
[377930820,1754614253014,-400.0,0.00021095,2]
[377930822,1754614253024,-3096.84,0.00021095,2]
[377930824,1754614253034,-400.0,0.00021095,2]
[377930826,1754614253045,-376.41709162,0.00021095,2]
[377930828,1754614253057,-400.0,0.00021095,2]
[377930830,1754614253069,-688.92,0.00021095,2]
[377930833,1754614253079,-400.0,0.00021095,2]
[377930835,1754614253090,-724.63,0.00021095,2]
[377930837,1754614253100,-400.0,0.00021095,2]
[377930839,1754614253111,-400.0,0.00021095,2]
[377930841,1754614253122,-455.77841706,0.00021095,2]
[377930843,1754614253134,-400.0,0.00021095,2]
[377930845,1754614253145,-431.12,0.00021095,2]
[377930847,1754614253156,-2478.01,0.00021095,2]
[377930850,1754614253167,-1838.62,0.00021095,2]
[377930852,1754614253178,-717.49,0.00021095,2]
[377930854,1754614253189,-791.17,0.00021095,2]
[377930856,1754614253202,-453.61,0.00021095,2]
[377930858,1754614253212,-743.0,0.00021095,2]
[377930860,1754614253222,-2279.55,0.00021095,2]
[377930862,1754614253232,-833.52,0.00021095,2]
[377930864,1754614253242,-1092.65,0.00021095,2]
[377930866,1754614253251,-400.0,0.00021095,2]
[377930868,1754614253264,-633.66,0.00021095,2]
[377930870,1754614253275,-1210.68,0.00021095,2]
[377930873,1754614253285,-900.29,0.00021095,2]
[377930875,1754614253295,-400.0,0.00021095,2]
[377930877,1754614253306,-757.08,0.00021095,2]
[377930879,1754614253316,-400.0,0.00021095,2]
[377930881,1754614253327,-602.93,0.00021095,2]
[377930883,1754614253337,-1933.78,0.00021095,2]
[377930885,1754614253347,-400.0,0.00021095,2]
[377930887,1754614253358,-400.0,0.00021095,2]
[377930889,1754614253368,-541.11,0.00021095,2]
[377930891,1754614253378,-411.24,0.00021095,2]
[377930894,1754614253388,-400.0,0.00021095,2]
[377930896,1754614253398,-2866.87,0.00021095,2]
[377930898,1754614253408,-400.0,0.00021095,2]
[377930900,1754614253419,-400.0,0.00021095,2]
[377930902,1754614253429,-1218.55,0.00021095,2]
[377930904,1754614253439,-400.0,0.00021095,2]
[377930906,1754614253449,-400.0,0.00021095,2]
[377930908,1754614253459,-1023.23,0.00021095,2]
[377930910,1754614253469,-400.0,0.00021095,2]
[377930912,1754614253479,-182.51114845,0.00021095,2]
[377930914,1754614253489,-995.05,0.00021095,2]
[377930916,1754614253499,-400.0,0.00021095,2]
[377930918,1754614253510,-1397.65,0.00021095,2]
[377930920,1754614253520,-400.0,0.00021095,2]
[377930923,1754614253531,-400.0,0.00021095,2]
[377930925,1754614253541,-400.0,0.00021095,2]
[377930927,1754614253552,-400.0,0.00021095,2]
[377930929,1754614253562,-440.38,0.00021095,2]
[377930931,1754614253572,-569.3,0.00021095,2]
[377930933,1754614253582,-1429.25,0.00021095,2]
[377930935,1754614253592,-1014.96,0.00021095,2]
[377930937,1754614253603,-400.0,0.00021095,2]
[377930939,1754614253614,-627.88,0.00021095,2]
[377930941,1754614253623,-400.0,0.00021095,2]
[377930943,1754614253634,-1063.03,0.00021095,2]
[377930945,1754614253645,-536.63,0.00021095,2]
[377930947,1754614253655,-400.0,0.00021095,2]
[377930950,1754614253666,-400.0,0.00021095,2]
[377930952,1754614253676,-400.0,0.00021095,2]
[377930954,1754614253686,-1603.28,0.00021095,2]
[377930956,1754614253696,-400.0,0.00021095,2]
[377930958,1754614253706,-400.0,0.00021095,2]
[377930960,1754614253717,-400.0,0.00021095,2]
[377930962,1754614253727,-1163.02,0.00021095,2]
[377930964,1754614253738,-1915.69,0.00021095,2]
[377930966,1754614253749,-400.0,0.00021095,2]
[377930968,1754614253759,-481.01,0.00021095,2]
[377930970,1754614253770,-400.0,0.00021095,2]
[377930972,1754614253780,-973.9,0.00021095,2]
[377930974,1754614253790,-1809.74,0.00021095,2]